[Event "LEM Niedersachsen-Meister 2025"]
[Site "Verden"]
[Date "2025.01.02"]
[Round "1.1"]
[White "Stelmaszyk, Nico"]
[Black "Mueer, Sebastian"]
[Result "1/2-1/2"]
[ECO "B22"]
[WhiteElo "2403"]
[BlackElo "2175"]
[Annotator "TA"]
[PlyCount "88"]
[EventDate "2024.12.27"]
[EventType "swiss"]
[EventCountry "GER"]
[SourceTitle "playchess.com"]
[Source "ChessBase"]
[SourceQuality "1"]
[TimeControl "40/5400+30:1800+30"]

{[%evp 10,88,22,0,4,11,20,26,20,22,21,13,35,31,31,41,52,7,2,4,8,10,4,0,2,0,0,0,30,27,31,17,22,22,37,0,14,-23,0,0,0,-32,-16,-14,-22,-13,-16,-15,-4,-4,-9,-24,-9,-46,-37,-69,-33,-32,-36,-33,-10,-29,-8,-6,-6,-4,-3,-3,-5,-7,-3,-1,-1,-2,0,0,0,-3,0,0,0]} 1. e4 {[%emt 0:00:03]} c5 {[%emt 0:00:07]} 2. c3 {[%emt 0:00:08][%cal Bc2c3,Bc3c4][%mdl 32]} d5 {[%emt 0:00:19]} 3. exd5 {[%emt 0:00:05]} Qxd5 {[%emt 0:00:07]} 4. d4 {[%emt 0:00:04]} Nf6 {[%emt 0:01:15]} 5. Nf3 {[%emt 0:00:06][%cal Bg1f3,Bf3d4,Bd4b3,Bb3c5][%mdl 32]} e6 {[%emt 0:00:48]} 6. c4 {[%emt 0:00:28]} Qd8 {[%emt 0:02:30]} 7. Nc3 {[%emt 0:00:06]} cxd4 {[%emt 0:04:01]} 8. Qxd4 {[%emt 0:00:16]} Qxd4 {[%emt 0:07:31]} 9. Nxd4 {[%emt 0:00:06]} a6 {[%emt 0:01:12] Repels Ndb5} 10. Be2 {[%emt 0:00:29]} Bd7 {[%emt 0:04:25]} 11. Be3 {[%emt 0:10:13]} Nc6 {[%emt 0:08:22]} 12. Nb3 {[%emt 0:00:45]} Rc8 {[%emt 0:07:00]} 13. Nc5 {[%emt 0:06:20]} Ne5 {[%emt 0:10:36]} 14. Nxd7 {[%emt 0:00:53]} Nfxd7 {[%emt 0:02:43]} 15. b3 {[%emt 0:00:56]} Bc5 {[%emt 0:05:25]} 16. Bd2 {[%emt 0:02:04]} Nc6 {[%emt 0:04:57]} 17. Ne4 {[%emt 0:14:23]} Be7 {[%emt 0:04:56]} 18. Rd1 {[%emt 0:03:46][%cal Ba1d1,Bd1d3,Bd3h3][%mdl 32]} Nc5 {[%emt 0:08:57]} 19. Nxc5 {[%emt 0:06:09]} Bxc5 {[%emt 0:00:02]} 20. O-O {[%emt 0:00:12]} Ke7 {[%emt 0:05:03]} 21. Bc3 {[%emt 0:00:08]} f6 {[%emt 0:00:47]} 22. Rd3 {[%emt 0:03:45]} Rcd8 {[%emt 0:01:35]} 23. Rh3 {[%emt 0:08:40]} Bd4 {[%emt 0:02:21]} 24. Be1 {[%emt 0:00:52]} Bc5 {[%emt 0:00:52]} 25. Bf3 {[%emt 0:04:04]} Rd7 {[%emt 0:00:53]} 26. Bxc6 {[%emt 0:13:46]} bxc6 {[%emt 0:00:02]} 27. b4 {[%emt 0:00:07]} Bd4 {[%emt 0:00:43]} 28. Ra3 {[%emt 0:03:29]} Ra7 {[%emt 0:02:06]} 29. Bd2 {[%emt 0:00:51]} Rd8 {[%emt 0:01:53]} 30. Bc1 {[%emt 0:04:26]} Rdd7 {[%emt 0:00:26]} 31. Rb3 {[%emt 0:02:30]} e5 {[%emt 0:01:02]} 32. Re1 {[%emt 0:01:46]} Ke6 {[%emt 0:00:53]} 33. Kf1 {[%emt 0:00:16]} a5 {[%emt 0:02:33]} 34. b5 {[%emt 0:01:41]} cxb5 {[%emt 0:03:42]} 35. cxb5 {[%emt 0:00:05]} a4 {[%emt 0:00:05]} 36. Rb1 $1 {[%emt 0:00:35]} Rab7 {[%emt 0:04:34]} 37. Be3 {[%emt 0:01:31]} Rd5 {[%emt 0:01:09] ...Bxe3 is the strong threat.} 38. Bxd4 {[%emt 0:07:11]} Rxd4 $11 {[%emt 0:00:32][%mdl 4096] Endgame KRR-KRR} 39. Rb2 {[%emt 0:00:13]} a3 {[%emt 0:02:37]} 40. Rb3 {[%emt 0:00:14]} Rd2 {[%emt 0:00:32]} 41. Re2 $1 {[%emt 0:30:28]} Rd1+ {[%emt 0:30:51]} 42. Re1 {[%emt 0:00:07]} Rd2 {[%emt 0:00:05]} 43. Re2 $1 {[%emt 0:00:04]} Rd1+ {[%emt 0:00:33]} 44. Re1 {[%emt 0:00:05]} Rd2 {[%emt 0:00:14]} 1/2-1/2

[Event "LEM Niedersachsen-Meister 2025"]
[Site "Verden"]
[Date "2025.01.02"]
[Round "1.2"]
[White "Lichtmannecker, Daniel"]
[Black "Abel, Dennes"]
[Result "0-1"]
[ECO "B10"]
[WhiteElo "2171"]
[BlackElo "2381"]
[Annotator "TA"]
[PlyCount "98"]
[EventDate "2024.12.27"]
[EventType "swiss"]
[EventCountry "GER"]
[SourceTitle "playchess.com"]
[Source "ChessBase"]
[SourceQuality "1"]
[TimeControl "40/5400+30:1800+30"]

{[%evp 9,98,13,6,0,7,16,16,0,3,3,17,12,9,0,14,-14,0,0,34,-23,-26,-25,-21,-33,-8,-20,0,0,0,0,0,-69,-69,-67,-68,-66,-66,-70,-66,-68,-39,-63,-43,-46,-47,-38,-52,-73,-38,-73,-52,-80,-50,-365,-373,-392,-393,-391,-343,-368,-361,-358,-347,-371,-362,-346,-349,-461,-458,-631,-647,-596,-597,-669,-671,-682,-660,-719,-691,-745,-741,-807,-804,-860,-859,-1275,-1248,-1277,-1270,-1061,-875]} 1. e4 {[%emt 0:00:05]} c6 {[%emt 0:00:06]} 2. Nf3 {[%emt 0:00:19]} d5 {[%emt 0:00:07]} 3. d3 {[%emt 0:00:10]} Qc7 {[%emt 0:00:37]} 4. Nc3 {[%emt 0:00:19]} dxe4 {[%emt 0:00:50]} 5. dxe4 {[%emt 0:00:09]} Nd7 {[%emt 0:00:54]} 6. a4 {[%emt 0:04:18]} Ngf6 {[%emt 0:01:02]} 7. Bc4 {[%emt 0:01:58]} Nb6 {[%emt 0:00:37]} 8. Bb3 {[%emt 0:06:52]} Bg4 {[%emt 0:00:50]} 9. h3 {[%emt 0:10:47]} Bxf3 {[%emt 0:03:07]} 10. Qxf3 {[%emt 0:01:56]} e6 {[%emt 0:00:07]} 11. O-O {[%emt 0:09:53]} Bd6 {[%emt 0:00:56]} 12. Ne2 {[%emt 0:05:58]} Nbd7 {[%emt 0:04:00]} 13. c3 $1 {[%emt 0:07:03]} h6 {[%emt 0:00:54]} 14. Bf4 {[%emt 0:05:13]} (14. Nd4 $14) 14... Bxf4 $11 {[%emt 0:09:51]} 15. Nxf4 {[%emt 0:02:19]} Ne5 {[%emt 0:02:08]} 16. Qe3 {[%emt 0:03:48]} g5 {[%emt 0:06:00]} 17. Nd3 {[%emt 0:01:55]} Nfd7 {[%emt 0:00:46]} 18. Nxe5 {[%emt 0:04:24]} Nxe5 {[%emt 0:03:50]} 19. f4 {[%emt 0:00:47]} gxf4 {[%emt 0:01:00]} 20. Rxf4 {[%emt 0:00:37]} (20. Qxf4 $11 O-O-O 21. Rad1) 20... Qb6 $15 {[%emt 0:02:46]} 21. Qxb6 {[%emt 0:01:26]} axb6 {[%emt 0:00:04]} 22. Rd1 {[%emt 0:03:52]} Ke7 {[%emt 0:02:03]} 23. Rf2 {[%emt 0:02:01]} Rhg8 {[%emt 0:02:44]} 24. Kh2 {[%emt 0:01:31]} Rg6 {[%emt 0:03:08]} 25. Rdd2 {[%emt 0:02:39]} Rag8 {[%emt 0:02:51]} 26. Bd1 {[%emt 0:04:22]} Rg5 {[%emt 0:04:25]} 27. Be2 {[%emt 0:02:25]} Ra8 {[%emt 0:02:31]} 28. Bd1 {[%emt 0:02:04]} Rgg8 {[%emt 0:01:58]} 29. Bb3 {[%emt 0:02:03]} Rad8 {[%emt 0:01:56]} 30. Rfe2 {[%emt 0:03:17]} Nd3 {[%emt 0:04:52] Hoping for ...Nc1. Black is more active.} 31. Kg1 $2 {[%emt 0:05:49][%mdl 8192]} (31. Rd1 $15) 31... Nc1 {[%emt 0:00:55]} 32. Bc2 {[%emt 0:00:44]} Nxe2+ {[%emt 0:00:25]} 33. Rxe2 $19 {[%emt 0:00:04][%mdl 4096] Endgame KRR-KRB} Rg3 {[%emt 0:01:59]} 34. Kf2 {[%emt 0:00:27]} Rdg8 {[%emt 0:00:28]} 35. Kf1 {[%emt 0:00:19]} R3g5 {[%emt 0:05:17]} 36. Rf2 {[%emt 0:03:00]} b5 {[%emt 0:02:05]} 37. axb5 {[%emt 0:00:56]} Rxb5 {[%emt 0:00:36]} 38. Bd1 {[%emt 0:00:33]} Ra8 {[%emt 0:01:36]} 39. b3 {[%emt 0:01:15]} Ra1 {[%emt 0:00:30][%csl LRb3,LRd1]} 40. Ke2 {[%emt 0:00:12]} Ra2+ {[%emt 0:02:34]} 41. Ke3 {[%emt 0:31:15]} Rxf2 {[%emt 0:30:44]} 42. Kxf2 {[%emt 0:00:09] KR-KB} Rc5 {[%emt 0:01:27]} 43. c4 {[%emt 0:00:10]} Kd6 {[%emt 0:00:46]} 44. Ke3 {[%emt 0:00:14]} Ke5 {[%emt 0:00:50]} 45. Bh5 {[%emt 0:01:55]} f6 {[%emt 0:00:23]} 46. Kd3 {[%emt 0:01:08]} Ra5 {[%emt 0:00:20]} 47. Bf3 {[%emt 0:00:00]} c5 {[%emt 0:00:00]} 48. Kc3 {[%emt 0:00:00]} Ra2 {[%emt 0:00:00]} 49. Kd3 {[%emt 0:00:00]} b6 {[%emt 0:00:00]} 0-1

[Event "LEM Niedersachsen-Meister 2025"]
[Site "Verden"]
[Date "2025.01.02"]
[Round "1.3"]
[White "von Mettenheim, Johannes"]
[Black "Peters, Tom"]
[Result "1/2-1/2"]
[ECO "E14"]
[WhiteElo "2333"]
[BlackElo "2166"]
[Annotator "TA"]
[PlyCount "38"]
[EventDate "2024.12.27"]
[EventType "swiss"]
[EventCountry "GER"]
[SourceTitle "playchess.com"]
[Source "ChessBase"]
[SourceQuality "1"]
[TimeControl "40/5400+30:1800+30"]

{[%evp 19,38,0,0,-11,-12,-15,0,0,0,0,22,13,4,14,0,12,0,-12,0,0,0]} 1. d4 {[%emt 0:00:01]} Nf6 {[%emt 0:00:07]} 2. Nf3 {[%emt 0:01:46]} e6 {[%emt 0:00:16]} 3. e3 {[%emt 0:01:12]} b6 {[%emt 0:08:42]} 4. Bd3 {[%emt 0:00:05]} Bb7 {[%emt 0:01:31]} 5. O-O {[%emt 0:00:08]} d5 {[%emt 0:01:24]} 6. b3 {[%emt 0:00:32]} Nbd7 {[%emt 0:02:28]} 7. Bb2 {[%emt 0:00:38]} Be7 {[%emt 0:06:13]} 8. c4 {[%emt 0:00:43]} O-O {[%emt 0:04:15]} 9. Nbd2 {[%emt 0:00:04][%cal Bb1d2,Bd2c4,Bc4b2,Bb2d3][%mdl 32]} c5 {[%emt 0:12:58]} 10. cxd5 {[%emt 0:00:07]} Nxd5 {[%emt 0:01:29]} 11. Rc1 {[%emt 0:17:31]} cxd4 {[%emt 0:06:33]} 12. Nxd4 {[%emt 0:02:54]} Nc5 {[%emt 0:02:06]} 13. Bb1 {[%emt 0:02:13]} Rc8 {[%emt 0:05:47]} 14. Nc4 {[%emt 0:07:57]} Bf6 {[%emt 0:06:38]} 15. Qg4 {[%emt 0:05:45]} b5 {[%emt 0:07:46]} 16. Nxb5 {[%emt 0:13:21]} Bxb2 {[%emt 0:00:26]} 17. Nxb2 {[%emt 0:00:22]} Ba6 $1 {[%emt 0:02:00]} 18. a4 {[%emt 0:24:22]} Qf6 {[%emt 0:07:40][%mdl 1024] Black has compensation.} 19. Nd3 {[%emt 0:07:38]} Bxb5 {[%emt 0:01:44]} 1/2-1/2

[Event "LEM Niedersachsen-Meister 2025"]
[Site "Verden"]
[Date "2025.01.02"]
[Round "1.4"]
[White "Bruns, Kai-Christian"]
[Black "Pubantz, Jan"]
[Result "1-0"]
[ECO "B13"]
[WhiteElo "2157"]
[BlackElo "2339"]
[Annotator "TA"]
[PlyCount "39"]
[EventDate "2024.12.27"]
[EventType "swiss"]
[EventCountry "GER"]
[SourceTitle "playchess.com"]
[Source "ChessBase"]
[SourceQuality "1"]
[TimeControl "40/5400+30:1800+30"]

{[%evp 14,39,14,20,14,14,20,19,29,0,17,21,21,27,14,24,85,77,273,265,487,481,562,562,3520,3477,2594,1791]} 1. e4 {[%emt 0:00:02]} c6 {[%emt 0:00:03]} 2. d4 {[%emt 0:00:05]} d5 {[%emt 0:00:03]} 3. exd5 {[%emt 0:00:05]} cxd5 {[%emt 0:00:03]} 4. Bd3 {[%emt 0:00:07]} Nf6 {[%emt 0:00:05]} 5. h3 {[%emt 0:00:06]} Nc6 {[%emt 0:00:13]} 6. c3 {[%emt 0:00:05]} e5 {[%emt 0:00:32]} 7. dxe5 {[%emt 0:00:05]} Nxe5 {[%emt 0:00:06]} 8. Nf3 {[%emt 0:00:09]} Nxd3+ {[%emt 0:06:26]} 9. Qxd3 {[%emt 0:00:07]} Bd6 {[%emt 0:07:12]} 10. O-O {[%emt 0:00:18]} O-O {[%emt 0:00:28] The position is equal.} 11. Be3 {[%emt 0:00:09]} Re8 {[%emt 0:14:39]} 12. Nbd2 {[%emt 0:00:56]} Ne4 {[%emt 0:12:26]} 13. Rfd1 {[%emt 0:05:47]} Bf5 {[%emt 0:03:28][%cal Oe4f2]} 14. Nf1 {[%emt 0:01:57]} (14. Qxd5 $2 Bh2+ 15. Nxh2 Qxd5 $19) 14... Qf6 {[%emt 0:05:39]} (14... Be6 $11) 15. Qxd5 $16 {[%emt 0:07:57]} Bxh3 $2 {[%emt 0:19:25] [#] This move loses the game for Black.} 16. Ng5 $1 $18 {[%emt 0:21:33][%cal Bf3g5,Bg5e4,Be4g3][%mdl 32]} Re5 {[%emt 0:24:17]} (16... Nxg5 17. Qxg5 (17. Bxg5 Qg6 $11) 17... Qxg5 18. Bxg5 $18) (16... Bxg2 17. Kxg2 Nxg5) 17. Qxb7 {[%emt 0:07:08] White is clearly winning.} ({Less strong is} 17. Nxe4 Qg6 $16 (17... Rxd5 $2 18. Nxf6+ gxf6 19. Rxd5 $18) (17... Rxd5 $2 18. Nxf6+ gxf6 19. Rxd5 $18)) 17... Rb8 {[%emt 0:03:19]} 18. Nxe4 {[%emt 0:01:50]} Qg6 {[%emt 0:00:31][%csl Gh3][%cal Rg6g2] [#]} 19. Qxb8+ $3 {[%emt 0:00:50]} Bf8 {[%emt 0:00:01]} 20. Neg3 {[%emt 0:01:27] Weighted Error Value: White=0.02 (flawless) /Black=0.83.  Loses game:     	---       	Black=1      Mistake:       	---       	Black=2      Inaccurate:     	White=1     	Black=1      OK:         	White=4     	Black=1      Best:        	White=3     	Black=1      Strong:       	White=1     	---        Brilliant:      	White=1     	---} (20. Qxe5 $2 Qxg2#) 1-0

[Event "LEM Niedersachsen-Meister 2025"]
[Site "Verden"]
[Date "2025.01.02"]
[Round "1.5"]
[White "Hampel, Felix"]
[Black "Meiwes, Thore"]
[Result "1-0"]
[ECO "A13"]
[WhiteElo "2343"]
[BlackElo "2120"]
[Annotator "TA"]
[PlyCount "51"]
[EventDate "2024.12.27"]
[EventType "swiss"]
[EventCountry "GER"]
[SourceTitle "playchess.com"]
[Source "ChessBase"]
[SourceQuality "1"]
[TimeControl "40/5400+30:1800+30"]

{[%evp 10,51,1,0,4,0,0,0,0,0,0,0,0,0,63,74,152,151,185,176,564,549,633,631,639,633,625,642,1258,1267,1154,833,932,918,929,933,897,885,1641,1673,1399,1194,1427,1273]} 1. c4 {[%emt 0:00:03]} Nf6 {[%emt 0:00:02]} 2. Nf3 {[%emt 0:00:09]} e6 {[%emt 0:00:04]} 3. Nc3 {[%emt 0:00:07]} d5 {[%emt 0:00:31]} 4. e3 {[%emt 0:00:06]} Be7 {[%emt 0:00:05]} 5. b3 {[%emt 0:00:07]} O-O {[%emt 0:00:07]} 6. Bb2 {[%emt 0:00:07]} dxc4 {[%emt 0:00:39]} 7. Bxc4 {[%emt 0:01:02]} a6 {[%emt 0:00:07]} 8. Qc2 $1 {[%emt 0:05:13]} c5 {[%emt 0:00:36]} 9. h4 {[%emt 0:04:45][%cal Bh2h4,Bh4h5][%mdl 32]} Nc6 {[%emt 0:00:55]} 10. Ng5 {[%emt 0:08:54]} Nb4 {[%emt 0:27:00]} 11. Qb1 {[%emt 0:00:15]} b5 {[%emt 0:05:43]} (11... h6 $1 $11) 12. Nxb5 $14 {[%emt 0:08:30]} g6 {[%emt 0:00:13]} ({Black should play} 12... axb5 13. Bxf6 g6 14. Bxe7 Qxe7 15. Bxb5 Bb7) 13. Nc3 $16 {[%emt 0:00:49][%cal Oh4h5] and h5! would now be decisive White is more active.} Bb7 {[%emt 0:01:40]} 14. h5 $40 {[%emt 0:07:36][%mdl 128] Black is in trouble.} Bd5 $2 {[%emt 0:04:21]} (14... gxh5 $2 {perishes.} 15. Nd5 $18) (14... Bxg2 15. hxg6 Bxh1 16. gxf7+ Rxf7 17. Bxe6 $16) (14... Nxh5 {is a better chance.} 15. Nxh7 Kxh7) 15. hxg6 $18 {[%emt 0:02:19]} Bxc4 {[%emt 0:07:16]} 16. gxf7+ {[%emt 0:03:38]} Rxf7 {[%emt 0:01:05]} 17. bxc4 {[%emt 0:00:17]} Nd3+ {[%emt 0:05:13][%cal Bb4d3,Bd3f2,Bf2g4,Bg4f6][%mdl 32]} 18. Ke2 {[%emt 0:00:47]} Nxf2 {[%emt 0:03:55]} 19. Nxf7 {[%emt 0:01:00]} (19. Kxf2 Qxd2+ 20. Ne2 (20. Kf3 {is a self mate.} Nd5+ 21. Kg3 Qxe3+ 22. Nf3 Bd6+ 23. Kh3 Rxf3+ 24. Kh4 Qh6+ 25. Kg4 Rg3#) 20... Ne4+ 21. Kg1 Qxe3+ (21... Nxg5 $2 22. Qg6+ Kf8 23. Bg7+ Rxg7 24. Rf1+ Kg8 25. Qh5 $19) 22. Kh2 Bd6+ (22... Nxg5 $2 23. Rf1 $19)) 19... Kxf7 {[%emt 0:00:28]} 20. Rf1 {[%emt 0:04:08]} N2g4 {[%emt 0:02:00]} 21. Qxh7+ {[%emt 0:00:38]} Ke8 {[%emt 0:00:05]} 22. Qg6+ {[%emt 0:00:30]} Kd7 {[%emt 0:00:19]} 23. Ne4 {[%emt 0:00:58]} Nxe4 {[%emt 0:01:30]} 24. Qxe4 {[%emt 0:00:42]} Rb8 {[%emt 0:00:58]} 25. Bc3 {[%emt 0:01:31]} Nf6 {[%emt 0:01:49]} 26. Qd3+ {[%emt 0:00:09]} 1-0

[Event "LEM Niedersachsen-Meister 2025"]
[Site "Verden"]
[Date "2025.01.02"]
[Round "1.6"]
[White "Sreyas Payyappat"]
[Black "Plischki, Sebastian"]
[Result "1/2-1/2"]
[ECO "B43"]
[WhiteElo "2115"]
[BlackElo "2323"]
[Annotator "TA"]
[PlyCount "93"]
[EventDate "2024.12.27"]
[EventType "swiss"]
[EventCountry "GER"]
[SourceTitle "playchess.com"]
[Source "ChessBase"]
[SourceQuality "1"]
[TimeControl "40/5400+30:1800+30"]

{[%evp 13,93,34,29,17,53,24,49,27,22,16,18,5,2,0,21,45,39,22,17,13,8,10,20,-9,0,0,22,11,20,-6,0,0,0,-17,0,0,88,0,9,11,15,23,18,0,0,-36,-39,-33,-36,-31,-31,-23,-32,-31,-23,-23,-20,-31,-31,-35,-27,-31,-30,-33,-16,-16,0,0,0,0,56,58,51,47,66,33,33,2,2,2,2,2]} 1. e4 {[%emt 0:00:02]} c5 {[%emt 0:00:14]} 2. Nf3 {[%emt 0:00:06]} a6 {[%emt 0:00:19]} 3. Nc3 {[%emt 0:01:05]} e6 {[%emt 0:00:47]} 4. d4 {[%emt 0:00:15]} cxd4 {[%emt 0:00:05]} 5. Nxd4 {[%emt 0:00:04]} b5 {[%emt 0:01:06]} 6. Bd3 {[%emt 0:01:16]} Bb7 {[%emt 0:00:08]} 7. O-O {[%emt 0:00:38]} Nc6 {[%emt 0:00:09]} 8. Be3 {[%emt 0:02:24]} Nge7 {[%emt 0:02:14]} 9. f4 {[%emt 0:01:52]} Nxd4 {[%emt 0:00:44]} 10. Bxd4 {[%emt 0:00:09]} Nc6 {[%emt 0:00:12]} 11. Bf2 {[%emt 0:03:22]} Be7 {[%emt 0:04:18]} 12. Qg4 {[%emt 0:04:32]} O-O {[%emt 0:01:47]} 13. Rad1 {[%emt 0:03:49]} f6 {[%emt 0:10:57]} 14. a4 {[%emt 0:02:47]} b4 {[%emt 0:05:43]} 15. Nd5 {[%emt 0:15:25] Strongly threatening Nb6.} f5 {[%emt 0:07:17]} 16. Nxe7+ {[%emt 0:01:37]} (16. exf5 exd5 17. Qh3 h6 $17) 16... Nxe7 {[%emt 0:00:06]} 17. exf5 {[%emt 0:00:12]} Nxf5 {[%emt 0:00:18]} 18. Bxf5 {[%emt 0:03:35]} Rxf5 {[%emt 0:01:06]} 19. Bd4 {[%emt 0:01:15][%csl Gd4][%cal Rg4g7]} g6 {[%emt 0:14:27] Black is weak on the dark squares} 20. Be5 {[%emt 0:00:40]} Bd5 {[%emt 0:07:59]} 21. Qh3 {[%emt 0:06:56]} Qb6+ {[%emt 0:05:34]} 22. Rf2 {[%emt 0:04:52]} Raf8 {[%emt 0:01:34][%cal Of5e5]} 23. Bd4 {[%emt 0:00:44]} Qc6 {[%emt 0:06:57][%cal Od7d6]} 24. Qh6 {[%emt 0:02:18]} R5f7 {[%emt 0:04:58] [#] Prevents Qg7+} (24... R8f7 $1 $11 25. Qh4 (25. g4 $2 Rxf4 26. Qh4 Rxf2 $19) 25... Qxa4) 25. b3 {[%emt 0:02:46] White is more active.} (25. h4 $1 $16) 25... d6 {[%emt 0:00:55][%cal Oe6e5] [#]} 26. f5 $1 {[%emt 0:12:35]} exf5 {[%emt 0:02:09]} (26... e5 27. fxg6) 27. Qd2 {[%emt 0:02:20][%cal Od4a1]} Be4 {[%emt 0:03:24]} 28. Ba1 {[%emt 0:04:24]} Qc5 {[%emt 0:01:57] Prevents Qd4} 29. Qxd6 {[%emt 0:01:35]} Qxd6 {[%emt 0:00:21]} 30. Rxd6 {[%emt 0:00:07]} Rc7 {[%emt 0:01:45]} 31. Rxa6 {[%emt 0:06:09]} Rd8 {[%emt 0:02:48]} 32. Be5 {[%emt 0:01:45]} Rd1+ {[%emt 0:01:39]} 33. Rf1 {[%emt 0:00:10]} Rxf1+ {[%emt 0:00:09]} 34. Kxf1 {[%emt 0:00:05]} Rxc2 $15 {[%emt 0:00:04][%mdl 4096] Endgame KRB-KRB} 35. Rb6 {[%emt 0:01:04]} Bxg2+ {[%emt 0:00:48]} 36. Ke1 $1 {[%emt 0:01:24][%cal Oe5f4]} Bf3 {[%emt 0:01:18] White must now prevent ...Re2+.} 37. Bd6 {[%emt 0:01:58][%cal Oh2h4]} g5 {[%emt 0:05:44]} 38. Rxb4 {[%emt 0:01:20]} f4 {[%emt 0:01:11][%cal Bf5f4,Bf4f3][%mdl 32] next ...Re2+ is good for Black.} 39. h4 $1 {[%emt 0:01:18]} Re2+ {[%emt 0:04:36]} (39... gxh4 40. Rxf4 Rc1+ 41. Kd2 Rd1+ 42. Kc3) 40. Kf1 {[%emt 0:00:13]} Rd2 {[%emt 0:00:13]} ({Much weaker is} 40... gxh4 $6 41. Rxf4 Rd2 42. Rxf3 $16) 41. Be7 {[%emt 0:33:08]} Rb2 {[%emt 0:05:48]} (41... Bg4 $11) 42. Bxg5 $14 {[%emt 0:00:00]} Be2+ $1 {[%emt 0:02:10]} 43. Kg1 {[%emt 0:00:00]} f3 {[%emt 0:00:13]} 44. Be3 {[%emt 0:00:00]} (44. Rf4 $5 h6 45. Bxh6 $16) 44... Bd1 {[%emt 0:01:51]} 45. Bf2 {[%emt 0:00:00]} Rxb3 {[%emt 0:00:51]} 46. Rxb3 {[%emt 0:00:00]} Bxb3 {[%emt 0:00:05]} 47. a5 {[%emt 0:00:00]} 1/2-1/2